[Event "European Women's Chess Championship (1-48)"]
[Site "Batumi, Georgia"]
[Date "2026.05.25"]
[Round "1.24"]
[White "Liavonava, Yuliya"]
[Black "Beydullayeva, Govhar"]
[Result "0-1"]
[TimeControl "90min/ 40moves+ 30min+ 30-sec increment from move 1"]
[WhiteTitle "-"]
[BlackTitle "-"]
[WhiteFideId "13524178"]
[BlackFideId "13413015"]
[WhiteElo "2118"]
[BlackElo "2368"]

1. e4 {[%clk 01:30:58]} {[%emt 00:00:02]} c5 {[%clk 01:30:53]} {[%emt
00:00:08]} 2. Nf3 {[%clk 01:31:22]} {[%emt 00:00:06]} d6 {[%clk 01:31:21]}
{[%emt 00:00:02]} 3. d4 {[%clk 01:31:45]} {[%emt 00:00:07]} cxd4 {[%clk
01:31:47]} {[%emt 00:00:04]} 4. Nxd4 {[%clk 01:32:12]} {[%emt 00:00:02]} Nf6
{[%clk 01:32:12]} {[%emt 00:00:05]} 5. Nc3 {[%clk 01:32:39]} {[%emt 00:00:03]}
a6 {[%clk 01:32:36]} {[%emt 00:00:07]} 6. h3 {[%clk 01:33:04]} {[%emt
00:00:04]} e5 {[%clk 01:33:02]} {[%emt 00:00:05]} 7. Nb3 {[%clk 01:33:20]}
{[%emt 00:00:12]} Be7 {[%clk 01:33:11]} {[%emt 00:00:23]} 8. Be3 {[%clk
01:33:15]} {[%emt 00:00:34]} Be6 {[%clk 01:33:30]} {[%emt 00:00:11]} 9. g4
{[%clk 01:28:58]} {[%emt 00:04:46]} h6 {[%clk 01:18:23]} {[%emt 00:15:38]} 10.
Qd2 {[%clk 01:29:22]} {[%emt 00:00:06]} Nbd7 {[%clk 01:17:15]} {[%emt
00:01:39]} 11. O-O-O {[%clk 01:29:42]} {[%emt 00:00:09]} Rc8 {[%clk 01:17:38]}
{[%emt 00:00:08]} 12. f4 {[%clk 01:20:14]} {[%emt 00:09:57]} b5 {[%clk
01:09:18]} {[%emt 00:08:50]} 13. Qg2 {[%clk 01:13:56]} {[%emt 00:06:47]} Qc7
{[%clk 00:41:50]} {[%emt 00:28:00]} 14. Kb1 {[%clk 01:11:11]} {[%emt 00:03:15]}
Nb6 {[%clk 00:38:49]} {[%emt 00:03:31]} 15. g5 {[%clk 00:46:21]} {[%emt
00:25:19]} hxg5 {[%clk 00:36:48]} {[%emt 00:02:33]} 16. fxg5 {[%clk 00:46:46]}
{[%emt 00:00:05]} Nh5 {[%clk 00:35:54]} {[%emt 00:01:23]} 17. Bd3 {[%clk
00:40:56]} {[%emt 00:06:19]} Nc4 {[%clk 00:34:18]} {[%emt 00:02:07]} 18. Bc1
{[%clk 00:41:17]} {[%emt 00:00:08]} Na3+ {[%clk 00:29:55]} {[%emt 00:04:53]} 19.
bxa3 {[%clk 00:39:20]} {[%emt 00:02:27]} Qxc3 {[%clk 00:30:22]} {[%emt
00:00:03]} 20. Rdf1 {[%clk 00:37:29]} {[%emt 00:02:21]} g6 {[%clk 00:30:00]}
{[%emt 00:00:53]} 21. Bb2 {[%clk 00:28:39]} {[%emt 00:09:19]} Qc7 {[%clk
00:29:41]} {[%emt 00:00:49]} 22. h4 {[%clk 00:26:08]} {[%emt 00:03:02]} Rb8
{[%clk 00:26:52]} {[%emt 00:03:19]} 23. Be2 {[%clk 00:15:15]} {[%emt 00:11:22]}
a5 {[%clk 00:26:51]} {[%emt 00:00:32]} 24. Bg4 {[%clk 00:15:29]} {[%emt
00:00:15]} Bc4 {[%clk 00:23:55]} {[%emt 00:03:27]} 25. Rf3 {[%clk 00:13:44]}
{[%emt 00:02:14]} Rh7 {[%clk 00:23:33]} {[%emt 00:00:52]} 26. Rd1 {[%clk
00:12:48]} {[%emt 00:01:26]} Nf4 {[%clk 00:20:17]} {[%emt 00:03:47]} 27. Rxf4
{[%clk 00:12:32]} {[%emt 00:00:45]} exf4 {[%clk 00:20:46]} {[%emt 00:00:01]} 28.
e5 {[%clk 00:10:39]} {[%emt 00:02:24]} a4 {[%clk 00:12:29]} {[%emt 00:08:47]}
29. Nd4 {[%clk 00:01:37]} {[%emt 00:09:31]} b4 {[%clk 00:12:34]} {[%emt
00:00:26]} 30. axb4 {[%clk 00:01:13]} {[%emt 00:00:54]} a3 {[%clk 00:10:15]}
{[%emt 00:02:50]} 31. Qc6+ {[%clk 00:00:41]} {[%emt 00:01:01]} Qxc6 {[%clk
00:10:30]} {[%emt 00:00:15]} 32. Nxc6 {[%clk 00:01:10]} {[%emt 00:00:01]} axb2
{[%clk 00:08:05]} {[%emt 00:02:55]} 33. exd6 {[%clk 00:01:05]} {[%emt
00:00:35]} Bxd6 {[%clk 00:06:27]} {[%emt 00:02:08]} 34. Nxb8 {[%clk 00:01:06]}
{[%emt 00:00:29]} Bxb8 {[%clk 00:06:42]} {[%emt 00:00:15]} 35. Bd7+ {[%clk
00:00:43]} {[%emt 00:00:52]} Ke7 {[%clk 00:06:57]} {[%emt 00:00:16]} 36. b5
{[%clk 00:00:56]} {[%emt 00:00:17]} f3 {[%clk 00:07:00]} {[%emt 00:00:27]} 37.
Bh3 {[%clk 00:00:38]} {[%emt 00:00:48]} Bxb5 {[%clk 00:07:19]} {[%emt
00:00:12]} 38. a4 {[%clk 00:00:44]} {[%emt 00:00:23]} Bxa4 {[%clk 00:07:16]}
{[%emt 00:00:33]} 39. Rd4 {[%clk 00:00:51]} {[%emt 00:00:23]} Bc6 {[%clk
00:07:21]} {[%emt 00:00:25]} 40. Rc4 {[%clk 00:01:13]} {[%emt 00:00:08]} Bd5
{[%clk 00:07:09]} {[%emt 00:00:42]} 41. Rd4 {[%clk 00:01:38]} {[%emt 00:00:04]}
Be6 {[%clk 00:07:29]} {[%emt 00:00:11]} 42. Bxe6 {[%clk 00:01:10]} {[%emt
00:00:58]} fxe6 {[%clk 00:07:54]} {[%emt 00:00:04]} 0-1

[Event "European Women's Chess Championship (1-48)"]
[Site "Batumi, Georgia"]
[Date "2026.05.25"]
[Round "1.25"]
[White "Mkrtchian, Lilit"]
[Black "Donghvani, Nia"]
[Result "1-0"]
[TimeControl "90min/ 40moves+ 30min+ 30-sec increment from move 1"]
[WhiteTitle "-"]
[BlackTitle "-"]
[WhiteFideId "13300601"]
[BlackFideId "13614649"]
[WhiteElo "2366"]
[BlackElo "2117"]

1. Nf3 {[%clk 01:30:52]} {[%emt 00:00:07]} c5 {[%clk 01:29:55]} {[%emt
00:01:06]} 2. c4 {[%clk 01:30:51]} {[%emt 00:00:30]} Nc6 {[%clk 01:29:50]}
{[%emt 00:00:36]} 3. Nc3 {[%clk 01:31:07]} {[%emt 00:00:13]} Nf6 {[%clk
01:29:42]} {[%emt 00:00:38]} 4. e3 {[%clk 01:29:57]} {[%emt 00:01:40]} e6
{[%clk 01:23:43]} {[%emt 00:06:30]} 5. d4 {[%clk 01:29:54]} {[%emt 00:00:33]}
cxd4 {[%clk 01:22:06]} {[%emt 00:02:07]} 6. exd4 {[%clk 01:30:18]} {[%emt
00:00:06]} d5 {[%clk 01:21:17]} {[%emt 00:01:19]} 7. c5 {[%clk 01:30:23]}
{[%emt 00:00:24]} Ne4 {[%clk 01:09:54]} {[%emt 00:11:54]} 8. Qc2 {[%clk
01:15:42]} {[%emt 00:15:10]} f5 {[%clk 00:53:19]} {[%emt 00:17:07]} 9. Bb5
{[%clk 01:11:20]} {[%emt 00:04:51]} Be7 {[%clk 00:47:21]} {[%emt 00:06:28]} 10.
Ne5 {[%clk 00:54:43]} {[%emt 00:17:07]} Bd7 {[%clk 00:42:48]} {[%emt 00:05:03]}
11. Bxc6 {[%clk 00:54:57]} {[%emt 00:00:17]} Bxc6 {[%clk 00:42:17]} {[%emt
00:01:00]} 12. O-O {[%clk 00:47:14]} {[%emt 00:08:12]} O-O {[%clk 00:35:07]}
{[%emt 00:07:41]} 13. f3 {[%clk 00:44:45]} {[%emt 00:02:58]} Nxc3 {[%clk
00:24:30]} {[%emt 00:11:07]} 14. Qxc3 {[%clk 00:45:03]} {[%emt 00:00:12]} Be8
{[%clk 00:16:12]} {[%emt 00:08:49]} 15. Bf4 {[%clk 00:38:54]} {[%emt 00:06:38]}
g5 {[%clk 00:14:44]} {[%emt 00:01:59]} 16. Bg3 {[%clk 00:39:16]} {[%emt
00:00:07]} h5 {[%clk 00:09:32]} {[%emt 00:05:43]} 17. Rfe1 {[%clk 00:38:33]}
{[%emt 00:01:13]} Rc8 {[%clk 00:04:10]} {[%emt 00:05:52]} 18. b4 {[%clk
00:34:56]} {[%emt 00:04:06]} Kg7 {[%clk 00:02:57]} {[%emt 00:01:43]} 19. h3
{[%clk 00:28:22]} {[%emt 00:07:04]} f4 {[%clk 00:02:22]} {[%emt 00:01:06]} 20.
Bf2 {[%clk 00:28:38]} {[%emt 00:00:14]} Rf5 {[%clk 00:02:02]} {[%emt 00:00:51]}
21. a4 {[%clk 00:28:17]} {[%emt 00:00:51]} a6 {[%clk 00:01:54]} {[%emt
00:00:37]} 22. Qb2 {[%clk 00:23:37]} {[%emt 00:05:09]} Bf6 {[%clk 00:01:49]}
{[%emt 00:00:36]} 23. b5 {[%clk 00:23:35]} {[%emt 00:00:32]} Bxe5 {[%clk
00:01:40]} {[%emt 00:00:39]} 24. dxe5 {[%clk 00:23:54]} {[%emt 00:00:11]} Bd7
{[%clk 00:00:38]} {[%emt 00:01:33]} 25. Rec1 {[%clk 00:21:16]} {[%emt
00:03:07]} g4 {[%clk 00:00:42]} {[%emt 00:00:26]} 26. fxg4 {[%clk 00:21:24]}
{[%emt 00:00:22]} hxg4 {[%clk 00:01:11]} {[%emt 00:00:01]} 27. hxg4 {[%clk
00:21:48]} {[%emt 00:00:06]} Rf8 {[%clk 00:01:26]} {[%emt 00:00:15]} 28. c6
{[%clk 00:17:27]} {[%emt 00:04:52]} bxc6 {[%clk 00:01:47]} {[%emt 00:00:09]} 29.
b6 {[%clk 00:17:52]} {[%emt 00:00:05]} Qg5 {[%clk 00:01:02]} {[%emt 00:01:15]}
30. b7 {[%clk 00:13:09]} {[%emt 00:05:13]} Rce8 {[%clk 00:00:36]} {[%emt
00:00:55]} 31. Qe2 {[%clk 00:04:58]} {[%emt 00:08:40]} Rb8 {[%clk 00:01:02]}
{[%emt 00:00:05]} 32. Rab1 {[%clk 00:05:03]} {[%emt 00:00:25]} f3 {[%clk
00:01:22]} {[%emt 00:00:10]} 33. gxf3 {[%clk 00:05:05]} {[%emt 00:00:27]} Rh8
{[%clk 00:01:06]} {[%emt 00:00:47]} 34. Be3 {[%clk 00:02:37]} {[%emt 00:02:58]}
Qh4 {[%clk 00:01:02]} {[%emt 00:00:34]} 35. Qg2 {[%clk 00:02:58]} {[%emt
00:00:09]} d4 {[%clk 00:00:42]} {[%emt 00:00:51]} 36. Bxd4 {[%clk 00:03:15]}
{[%emt 00:00:13]} Qg5 {[%clk 00:01:08]} {[%emt 00:00:03]} 37. Rc3 {[%clk
00:00:54]} {[%emt 00:02:50]} Qf4 {[%clk 00:01:28]} {[%emt 00:00:11]} 38. Ba7
{[%clk 00:00:52]} {[%emt 00:00:32]} c5 {[%clk 00:01:28]} {[%emt 00:00:30]} 39.
Bxc5 {[%clk 00:00:40]} {[%emt 00:00:43]} Bc6 {[%clk 00:00:38]} {[%emt
00:01:19]} 40. Be3 {[%clk 00:00:32]} {[%emt 00:00:38]} Qxa4 {[%clk 00:01:03]}
{[%emt 00:00:05]} 41. Ba7 {[%clk 00:17:43]} {[%emt 00:13:19]} Rbd8 {[%clk
00:02:28]} {[%emt 00:29:05]} 42. Qc2 {[%clk 00:14:22]} {[%emt 00:03:51]} Qf4
{[%clk 00:01:37]} {[%emt 00:01:21]} 43. Rxc6 {[%clk 00:14:09]} {[%emt
00:00:43]} Rd2 {[%clk 00:01:55]} {[%emt 00:00:12]} 44. Rc7+ {[%clk 00:12:34]}
{[%emt 00:02:05]} Kh6 {[%clk 00:02:21]} {[%emt 00:00:04]} 45. Qe4 {[%clk
00:04:24]} {[%emt 00:08:39]} Qh2+ {[%clk 00:02:42]} {[%emt 00:00:10]} 46. Kf1
{[%clk 00:04:51]} {[%emt 00:00:02]} Qh1+ {[%clk 00:01:15]} {[%emt 00:01:58]} 47.
Bg1 {[%clk 00:05:17]} {[%emt 00:00:04]} Qg2+ {[%clk 00:01:26]} {[%emt
00:00:19]} 48. Ke1 {[%clk 00:05:44]} {[%emt 00:00:03]} Qxg1+ {[%clk 00:00:40]}
{[%emt 00:01:16]} 49. Kxd2 {[%clk 00:06:10]} {[%emt 00:00:04]} Qf2+ {[%clk
00:00:40]} {[%emt 00:00:30]} 50. Kc3 {[%clk 00:06:25]} {[%emt 00:00:15]} 1-0

[Event "European Women's Chess Championship (1-48)"]
[Site "Batumi, Georgia"]
[Date "2026.05.25"]
[Round "1.26"]
[White "Ivanytska, Liudmyla"]
[Black "Mkrtchyan, Mariam"]
[Result "0-1"]
[TimeControl "90min/ 40moves+ 30min+ 30-sec increment from move 1"]
[WhiteTitle "-"]
[BlackTitle "-"]
[WhiteFideId "14176211"]
[BlackFideId "13310828"]
[WhiteElo "2112"]
[BlackElo "2365"]

1. e4 {[%clk 01:30:58]} c5 {[%clk 01:30:33]} {[%emt 00:00:27]} 2. Nf3 {[%clk
01:31:18]} {[%emt 00:00:10]} a6 {[%clk 01:30:43]} {[%emt 00:00:21]} 3. g3
{[%clk 01:31:31]} {[%emt 00:00:16]} Nc6 {[%clk 01:30:30]} {[%emt 00:00:44]} 4.
Bg2 {[%clk 01:20:57]} {[%emt 00:11:05]} Nf6 {[%clk 01:29:59]} {[%emt 00:01:00]}
5. d3 {[%clk 01:20:30]} {[%emt 00:00:58]} d6 {[%clk 01:25:33]} {[%emt
00:04:55]} 6. O-O {[%clk 01:20:43]} {[%emt 00:00:17]} e5 {[%clk 01:24:24]}
{[%emt 00:01:39]} 7. c3 {[%clk 01:21:00]} {[%emt 00:00:14]} Be7 {[%clk
01:24:21]} {[%emt 00:00:32]} 8. Re1 {[%clk 01:20:33]} {[%emt 00:00:56]} O-O
{[%clk 01:24:06]} {[%emt 00:00:45]} 9. h3 {[%clk 01:18:33]} {[%emt 00:02:31]}
b5 {[%clk 01:19:32]} {[%emt 00:05:03]} 10. d4 {[%clk 01:18:15]} {[%emt
00:00:48]} cxd4 {[%clk 01:12:26]} {[%emt 00:07:37]} 11. cxd4 {[%clk 01:18:23]}
{[%emt 00:00:22]} Bd7 {[%clk 01:12:08]} {[%emt 00:00:48]} 12. a3 {[%clk
01:11:05]} {[%emt 00:07:48]} Rc8 {[%clk 01:07:54]} {[%emt 00:04:44]} 13. Nc3
{[%clk 01:10:57]} {[%emt 00:00:38]} Nxd4 {[%clk 01:01:01]} {[%emt 00:07:22]} 14.
Nxd4 {[%clk 01:10:58]} {[%emt 00:00:29]} exd4 {[%clk 01:01:27]} {[%emt
00:00:04]} 15. Qxd4 {[%clk 01:11:26]} {[%emt 00:00:01]} Rc4 {[%clk 01:01:13]}
{[%emt 00:00:45]} 16. Qd3 {[%clk 01:09:02]} {[%emt 00:02:54]} Qc8 {[%clk
00:59:39]} {[%emt 00:02:03]} 17. g4 {[%clk 01:07:28]} {[%emt 00:02:05]} Be6
{[%clk 00:55:19]} {[%emt 00:04:50]} 18. Qg3 {[%clk 00:51:11]} {[%emt 00:16:46]}
Nd7 {[%clk 00:51:25]} {[%emt 00:04:24]} 19. g5 {[%clk 00:38:02]} {[%emt
00:13:39]} g6 {[%clk 00:29:50]} {[%emt 00:22:05]} 20. Bf4 {[%clk 00:34:18]}
{[%emt 00:04:14]} Ne5 {[%clk 00:27:33]} {[%emt 00:02:48]} 21. Rad1 {[%clk
00:33:36]} {[%emt 00:01:12]} b4 {[%clk 00:25:20]} {[%emt 00:02:43]} 22. Nd5
{[%clk 00:28:56]} {[%emt 00:05:10]} Bxd5 {[%clk 00:25:02]} {[%emt 00:00:48]} 23.
Rxd5 {[%clk 00:28:10]} {[%emt 00:01:16]} Rc2 {[%emt 00:13:19]} 24. Bd2 {[%clk
00:17:18]} bxa3 {[%clk 00:21:25]} {[%emt 00:02:41]} 25. bxa3 {[%clk 00:17:42]}
{[%emt 00:00:05]} Nc4 {[%clk 00:18:48]} {[%emt 00:03:07]} 26. Bb4 {[%clk
00:17:10]} {[%emt 00:01:02]} a5 {[%clk 00:18:23]} {[%emt 00:00:55]} 27. Bc3
{[%clk 00:16:34]} {[%emt 00:01:06]} Nxa3 {[%clk 00:15:55]} {[%emt 00:02:58]} 28.
Bf6 {[%clk 00:13:54]} {[%emt 00:03:09]} Bxf6 {[%clk 00:12:39]} {[%emt
00:03:47]} 29. gxf6 {[%clk 00:14:22]} {[%emt 00:00:02]} Rc1 {[%clk 00:07:24]}
{[%emt 00:05:44]} 30. Rdd1 {[%clk 00:13:51]} {[%emt 00:01:01]} Rxd1 {[%clk
00:07:34]} {[%emt 00:00:21]} 31. Rxd1 {[%clk 00:14:18]} {[%emt 00:00:02]} Nc4
{[%clk 00:07:14]} {[%emt 00:00:50]} 32. Bf1 {[%clk 00:08:21]} {[%emt 00:06:28]}
Qe6 {[%clk 00:02:16]} {[%emt 00:05:28]} 33. Bxc4 {[%clk 00:07:36]} {[%emt
00:01:15]} Qxc4 {[%clk 00:02:45]} 34. Qf4 {[%clk 00:06:47]} {[%emt 00:01:19]}
Kh8 {[%clk 00:03:03]} {[%emt 00:00:13]} 35. Qxd6 {[%clk 00:05:08]} {[%emt
00:02:09]} Rg8 {[%clk 00:03:13]} {[%emt 00:00:20]} 36. Qe7 {[%clk 00:04:58]}
{[%emt 00:00:39]} Qc8 {[%clk 00:01:39]} {[%emt 00:02:04]} 37. Kg2 {[%clk
00:01:04]} {[%emt 00:04:25]} Rf8 {[%emt 00:01:48]} 38. Rd5 {[%clk 00:00:44]}
Kg8 {[%clk 00:00:47]} {[%emt 00:00:53]} 39. Qe5 {[%clk 00:00:55]} {[%emt
00:00:18]} h6 {[%clk 00:00:43]} {[%emt 00:00:35]} 40. Rxa5 {[%clk 00:01:09]}
{[%emt 00:00:16]} Re8 {[%clk 00:00:40]} {[%emt 00:00:33]} 41. Qd5 {[%clk
00:00:41]} {[%emt 00:00:57]} Qc2 {[%clk 00:13:34]} {[%emt 00:17:36]} 42. e5
{[%clk 00:15:19]} {[%emt 00:15:53]} Qf5 {[%clk 00:13:43]} {[%emt 00:00:20]} 43.
Qd2 {[%clk 00:12:55]} {[%emt 00:02:54]} Qe4+ {[%clk 00:09:49]} {[%emt
00:04:25]} 44. Kg3 {[%clk 00:08:51]} {[%emt 00:04:33]} g5 {[%clk 00:07:16]}
{[%emt 00:03:03]} 45. Qe3 {[%clk 00:08:41]} {[%emt 00:00:41]} Qxe3+ {[%clk
00:01:38]} {[%emt 00:06:08]} 46. fxe3 {[%clk 00:09:09]} {[%emt 00:00:01]} Kh7
{[%clk 00:02:03]} {[%emt 00:00:06]} 47. Kf3 {[%clk 00:07:38]} {[%emt 00:02:00]}
Kg6 {[%clk 00:02:32]} {[%emt 00:00:02]} 48. Ke4 {[%clk 00:07:56]} {[%emt
00:00:12]} Rb8 {[%clk 00:01:21]} {[%emt 00:01:40]} 49. Ra4 {[%clk 00:07:24]}
{[%emt 00:01:03]} h5 {[%clk 00:01:37]} {[%emt 00:00:14]} 50. h4 {[%clk
00:04:22]} {[%emt 00:03:32]} gxh4 {[%clk 00:00:53]} {[%emt 00:01:14]} 51. Kf4
{[%clk 00:04:35]} {[%emt 00:00:16]} Rb1 {[%clk 00:01:05]} {[%emt 00:00:18]} 52.
Ra8 {[%clk 00:02:48]} {[%emt 00:02:17]} Rf1+ {[%clk 00:01:24]} {[%emt
00:00:11]} 53. Ke4 {[%clk 00:03:10]} {[%emt 00:00:08]} h3 {[%clk 00:01:39]}
{[%emt 00:00:16]} 54. Ra2 {[%clk 00:01:04]} {[%emt 00:02:36]} Kg5 {[%clk
00:01:30]} {[%emt 00:00:38]} 55. e6 {[%clk 00:00:51]} {[%emt 00:00:44]} Rxf6
{[%clk 00:00:42]} {[%emt 00:01:18]} 56. Ra5+ {[%clk 00:00:33]} {[%emt
00:00:48]} Kg4 {[%clk 00:00:54]} {[%emt 00:00:18]} 57. e7 {[%clk 00:00:59]}
{[%emt 00:00:04]} Re6+ {[%clk 00:01:06]} {[%emt 00:00:18]} 58. Re5 {[%clk
00:01:22]} {[%emt 00:00:07]} Rxe7 {[%clk 00:01:20]} {[%emt 00:00:16]} 59. Rxe7
{[%clk 00:01:48]} {[%emt 00:00:03]} h2 {[%clk 00:01:47]} {[%emt 00:00:03]} 60.
Rxf7 {[%clk 00:02:09]} {[%emt 00:00:10]} h1=Q+ {[%clk 00:02:09]} {[%emt
00:00:08]} 61. Ke5 {[%clk 00:02:38]} Qa1+ {[%clk 00:02:07]} {[%emt 00:00:31]}
62. Ke6 {[%clk 00:02:31]} {[%emt 00:00:38]} Qa2+ {[%clk 00:02:04]} {[%emt
00:00:32]} 63. Kf6 {[%clk 00:02:56]} {[%emt 00:00:05]} Qxf7+ {[%clk 00:01:54]}
{[%emt 00:00:41]} 64. Kxf7 {[%clk 00:03:25]} {[%emt 00:00:01]} Kf5 {[%clk
00:01:58]} {[%emt 00:00:26]} 0-1

[Event "European Women's Chess Championship (1-48)"]
[Site "Batumi, Georgia"]
[Date "2026.05.25"]
[Round "1.27"]
[White "Bivol, Alina"]
[Black "Lomaia, Diana"]
[Result "1-0"]
[TimeControl "90min/ 40moves+ 30min+ 30-sec increment from move 1"]
[WhiteTitle "-"]
[BlackTitle "-"]
[WhiteFideId "4100123"]
[BlackFideId "13612476"]
[WhiteElo "2361"]
[BlackElo "2110"]

1. e4 {[%clk 01:30:53]} {[%emt 00:00:05]} e5 {[%clk 01:30:56]} {[%emt
00:00:05]} 2. Nf3 {[%clk 01:31:06]} {[%emt 00:00:17]} Nc6 {[%clk 01:31:04]}
{[%emt 00:00:23]} 3. Bb5 {[%clk 01:31:02]} {[%emt 00:00:33]} a6 {[%clk
01:30:45]} {[%emt 00:00:50]} 4. Ba4 {[%clk 01:31:24]} {[%emt 00:00:08]} Nf6
{[%clk 01:30:25]} {[%emt 00:00:50]} 5. Nc3 {[%clk 01:31:20]} {[%emt 00:00:34]}
Bc5 {[%clk 01:20:56]} {[%emt 00:09:58]} 6. d3 {[%clk 01:29:54]} {[%emt
00:01:55]} b5 {[%clk 01:20:16]} {[%emt 00:01:11]} 7. Bb3 {[%clk 01:30:23]}
{[%emt 00:00:02]} h6 {[%clk 01:18:40]} {[%emt 00:02:06]} 8. Nd5 {[%clk
01:24:52]} {[%emt 00:05:59]} d6 {[%clk 01:15:43]} {[%emt 00:03:28]} 9. Nxf6+
{[%clk 01:22:36]} {[%emt 00:02:47]} Qxf6 {[%clk 01:15:52]} {[%emt 00:00:20]} 10.
Bd5 {[%clk 01:22:58]} {[%emt 00:00:08]} Bb7 {[%clk 01:15:37]} {[%emt 00:00:45]}
11. c3 {[%clk 01:20:27]} {[%emt 00:03:01]} Rb8 {[%clk 01:10:32]} {[%emt
00:05:34]} 12. O-O {[%clk 01:14:41]} {[%emt 00:06:16]} O-O {[%clk 01:06:21]}
{[%emt 00:04:42]} 13. Kh1 {[%clk 01:13:18]} {[%emt 00:01:54]} Ne7 {[%clk
00:58:41]} {[%emt 00:08:09]} 14. Bxb7 {[%clk 01:08:21]} {[%emt 00:05:28]} Rxb7
{[%clk 00:59:07]} {[%emt 00:00:03]} 15. d4 {[%clk 01:07:06]} {[%emt 00:01:44]}
exd4 {[%clk 00:55:44]} {[%emt 00:03:54]} 16. cxd4 {[%clk 01:05:01]} {[%emt
00:02:35]} Bb6 {[%clk 00:55:35]} {[%emt 00:00:39]} 17. Be3 {[%clk 01:02:53]}
{[%emt 00:02:39]} Ng6 {[%clk 00:41:27]} {[%emt 00:14:37]} 18. Qc2 {[%clk
00:59:06]} {[%emt 00:04:16]} Nf4 {[%clk 00:25:02]} {[%emt 00:16:56]} 19. Rfd1
{[%clk 00:50:36]} {[%emt 00:09:00]} Ne6 {[%clk 00:23:00]} {[%emt 00:02:32]} 20.
b4 {[%clk 00:46:41]} {[%emt 00:04:25]} a5 {[%clk 00:17:49]} {[%emt 00:05:42]}
21. bxa5 {[%clk 00:45:03]} {[%emt 00:02:07]} Bxa5 {[%clk 00:17:55]} {[%emt
00:00:24]} 22. Rab1 {[%clk 00:43:25]} {[%emt 00:02:08]} Rfb8 {[%clk 00:14:48]}
{[%emt 00:03:37]} 23. d5 {[%clk 00:40:30]} {[%emt 00:03:25]} Ng5 {[%clk
00:02:51]} {[%emt 00:12:28]} 24. Nd4 {[%clk 00:39:14]} {[%emt 00:01:45]} Re8
{[%clk 00:02:29]} {[%emt 00:00:52]} 25. f3 {[%clk 00:38:36]} {[%emt 00:01:09]}
Bb6 {[%clk 00:00:44]} {[%emt 00:02:16]} 26. Rb3 {[%clk 00:29:36]} {[%emt
00:09:29]} Bxd4 {[%clk 00:00:35]} {[%emt 00:00:39]} 27. Bxd4 {[%clk 00:29:55]}
{[%emt 00:00:11]} Qe7 {[%clk 00:00:38]} {[%emt 00:00:27]} 28. a4 {[%clk
00:29:33]} {[%emt 00:00:51]} b4 {[%clk 00:00:40]} {[%emt 00:00:29]} 29. a5
{[%clk 00:27:57]} {[%emt 00:02:06]} Qd7 {[%clk 00:00:48]} {[%emt 00:00:21]} 30.
a6 {[%clk 00:27:42]} {[%emt 00:00:45]} Rb5 {[%clk 00:01:02]} {[%emt 00:00:16]}
31. a7 {[%clk 00:27:22]} {[%emt 00:00:50]} f6 {[%clk 00:00:40]} {[%emt
00:00:52]} 32. Rdb1 {[%clk 00:26:34]} {[%emt 00:01:17]} f5 {[%clk 00:00:38]}
{[%emt 00:00:33]} 33. Rxb4 {[%clk 00:24:35]} {[%emt 00:02:30]} Rxb4 {[%clk
00:01:04]} {[%emt 00:00:04]} 34. Rxb4 {[%clk 00:24:59]} {[%emt 00:00:05]} fxe4
{[%clk 00:01:16]} {[%emt 00:00:18]} 35. Rb8 {[%clk 00:23:56]} {[%emt 00:01:33]}
exf3 {[%clk 00:01:01]} {[%emt 00:00:45]} 36. a8=Q {[%clk 00:24:00]} {[%emt
00:00:26]} fxg2+ {[%clk 00:01:24]} {[%emt 00:00:08]} 37. Qxg2 {[%clk 00:24:18]}
{[%emt 00:00:11]} 1-0